bitfinex/quotes_ETHUSD_20220227
["timestamp","ask_amount","ask_price","bid_price","bid_amount"]
[1645973437489,0.90505,2765.5,2764.2,8.5543]
[1645973437687,0.90505,2765.5,2764.9,0.04086843]
[1645973437688,11.449,2765.4,2764.9,0.04086843]
[1645973437886,11.749,2765.4,2764.9,0.04086843]
[1645973438090,11.749,2765.4,2763.9,0.5]
[1645973438091,0.04073157,2764.9,2763.9,0.5]
[1645973438293,13.3821,2765.0,2763.9,0.5]
[1645973438294,11.02,2764.7,2763.9,0.5]
[1645973438499,0.90531,2764.2,2763.1,3.5]
[1645973438694,0.679,2764.1,2763.2,1.53008448]
[1645973438891,0.429,2764.0,2763.2,1.53008448]
[1645973439091,0.25,2764.1,2764.0,0.85799999]
[1645973439701,0.429,2764.2,2764.0,4.35799999]
[1645973439894,0.25,2764.3,2764.1,3.5]
[1645973440096,0.25,2764.9,2764.1,3.5]
[1645973440296,0.429,2765.6,2764.2,0.37439458]
[1645973440297,0.25,2765.6,2764.2,0.37439458]
[1645973440502,0.25,2765.6,2764.9,0.3621]
[1645973440696,0.25,2766.2,2764.4,0.3]
[1645973440894,0.3621,2766.3,2764.4,1.3]
[1645973441099,0.7911,2766.3,2764.5,3.5]
[1645973441328,0.429,2766.3,2765.3,1.13840252]
[1645973441535,0.429,2766.3,2764.8,0.0013667]
[1645973441734,0.90472,2766.1,2764.8,0.0013667]
[1645973441931,0.7911,2766.0,2764.8,0.0013667]
[1645973442534,0.429,2766.0,2765.4,0.0013664]
[1645973443334,2.0,2766.2,2765.4,0.0013664]
[1645973444835,0.00541086,2765.9,2765.4,0.00454957]
[1645973445069,0.00541086,2765.9,2765.4,1.12222172]
[1645973445269,0.00541086,2765.9,2765.4,0.00454957]
[1645973445873,0.18008108,2765.8,2765.4,0.00454957]
[1645973446078,2.429,2765.7,2765.4,0.00401321]
[1645973446281,0.729,2765.7,2765.4,1.321e-05]
[1645973446575,1.0,2765.3,2764.7,0.01605684]
[1645973446778,0.429,2765.2,2764.7,0.01605684]
[1645973447277,0.429,2765.2,2764.3,7.2335]
[1645973447582,3.0,2765.5,2765.1,1.2719488]
[1645973447583,2.0,2765.5,2765.1,1.2719488]
[1645973447778,2.0,2765.5,2764.5,0.3621]
[1645973447976,2.0,2765.5,2764.6,3.5]
[1645973448178,2.0,2765.5,2764.4,4.8]
[1645973448378,2.0,2765.5,2764.3,7.2335]
[1645973448577,0.90496,2765.3,2764.3,7.2335]
[1645973448845,1.33396,2765.3,2764.3,7.2335]
[1645973449035,1.99606,2765.3,2764.3,7.2335]
[1645973449237,1.63396,2765.3,2764.6,1.01428398]
[1645973449436,0.729,2765.3,2764.3,7.2335]
[1645973449637,0.729,2765.3,2764.7,0.00454069]
[1645973450439,1.63397,2765.3,2764.7,0.00454069]
[1645973450839,1.63397,2765.3,2764.9,0.00454036]
[1645973452040,1.63397,2765.3,2765.0,0.0045402]
[1645973452241,1.63397,2765.3,2765.0,4.02e-05]
[1645973452500,1.63397,2765.3,2764.3,7.2335]
[1645973452501,7.5,2765.1,2764.3,7.2335]
[1645973452783,7.5,2765.1,2764.3,6.18484716]
[1645973452784,0.90538,2764.7,2764.3,6.18484716]
[1645973452982,2.0,2764.5,2764.3,6.18484716]
[1645973453180,0.429,2764.4,2764.3,6.18484716]
[1645973453784,1.429,2764.4,2764.3,6.18484716]
[1645973453993,12.449,2764.4,2764.3,6.18484716]
[1645973454185,12.449,2764.4,2764.3,5.93484716]
[1645973454387,12.449,2764.4,2764.0,0.85799999]
[1645973454388,5.35534,2764.3,2764.0,0.85799999]
[1645973454589,0.429,2764.2,2764.0,0.85799999]
[1645973454790,1.33439,2764.2,2764.0,0.85799999]
[1645973454989,13.65439,2764.2,2764.0,0.85799999]
[1645973455189,13.95439,2764.2,2764.0,0.85799999]
[1645973455490,14.95439,2764.2,2764.0,0.85799999]
[1645973455691,14.95439,2764.2,2764.0,0.0520409]
[1645973455890,1.0,2764.1,2764.0,0.0520409]
[1645973456089,1.429,2764.1,2764.0,0.0520409]
[1645973456536,0.90549,2763.8,2762.9,3.1484]
[1645973456732,0.90549,2763.8,2762.4,2.8146]
[1645973456733,4.2911,2763.7,2762.4,2.8146]
[1645973457030,4.2911,2763.7,2762.2,2.3137]
[1645973457031,4.5911,2763.7,2762.2,2.3137]
[1645973457634,4.5911,2763.7,2762.2,2.6758]
[1645973457832,4.5911,2763.7,2762.4,1.30190994]
[1645973458032,4.229,2763.7,2762.8,0.00447938]
[1645973458234,0.729,2763.7,2762.8,0.00447938]
[1645973458434,0.90559,2763.5,2762.8,0.00447938]
[1645973458633,0.429,2763.4,2762.8,0.00447938]
[1645973459235,0.429,2763.4,2763.0,0.00447906]
[1645973460583,0.429,2763.4,2763.1,0.00447898]
[1645973461183,2.11115,2763.5,2763.4,0.85799999]
[1645973462986,2.54015,2763.5,2763.4,0.85799999]
[1645973464436,7.5,2763.4,2762.9,0.01437853]
[1645973464638,16.76039,2763.3,2762.9,0.01437853]
[1645973464836,11.92589,2763.1,2762.9,0.01437853]
[1645973465036,0.429,2763.2,2761.6,1.1961]
[1645973465037,20.8821,2762.9,2761.6,1.1961]
[1645973465238,20.8821,2762.9,2761.4,3.1268]
[1645973465239,1.2681,2762.6,2761.4,3.1268]
[1645973465437,11.449,2762.8,2761.2,1.1715]
[1645973465438,0.429,2762.5,2761.2,1.1715]
[1645973465639,0.429,2762.4,2761.3,1.53105612]
[1645973465838,0.429,2762.3,2761.3,1.53105612]
[1645973466339,0.429,2762.3,2761.7,1.40213754]
[1645973466542,11.92599,2762.2,2761.7,0.00375179]
[1645973466743,3.929,2762.1,2761.7,0.00375179]
[1645973466941,4.679,2762.1,2761.7,0.00375179]
[1645973467142,2.0,2761.8,2761.7,0.00375179]
[1645973467340,2.429,2761.8,2761.7,0.00375179]
[1645973467781,2.429,2761.8,2761.3,0.01500913]
[1645973468381,2.729,2761.8,2761.3,0.01500913]
[1645973468584,3.729,2761.8,2761.3,0.01500913]
[1645973469086,11.92908108,2761.8,2761.4,0.00375219]
[1645973469294,0.90633,2761.5,2761.4,0.06814115]
[1645973469488,0.429,2761.5,2761.4,0.06814115]
[1645973469686,2.429,2761.5,2761.4,0.06814115]
[1645973469888,13.449,2761.5,2761.4,0.00384115]
[1645973470086,2.429,2761.5,2761.4,0.00384115]
[1645973470290,3.429,2761.5,2761.4,8.896e-05]
[1645973470690,11.02,2761.4,2761.3,0.00015349]
[1645973470989,16.949,2761.4,2760.1,7.36]
[1645973471221,1.0,2761.1,2760.3,1.35172131]
[1645973471424,0.429,2761.0,2760.3,1.25172131]
[1645973471828,0.729,2761.0,2760.3,1.25172131]
[1645973472228,0.729,2761.0,2759.5,13.2134]
[1645973472432,0.729,2761.0,2759.6,1.53190725]
[1645973472433,1.81294,2760.8,2759.6,1.53190725]
[1645973472631,0.7911,2760.7,2759.6,1.53190725]
[1645973472834,2.0,2759.9,2759.6,1.53190725]
[1645973473033,0.429,2760.2,2759.9,0.45143801]
[1645973473230,0.429,2760.2,2760.0,1.41717057]
[1645973473433,0.25,2760.7,2760.0,1.41717057]
[1645973473632,2.0,2760.7,2760.0,1.41717057]
[1645973473835,0.25,2760.6,2760.0,0.91717057]
[1645973474234,0.25,2760.6,2759.9,0.45585711]
[1645973474444,0.429,2760.5,2759.9,0.45585711]
[1645973474640,0.25,2760.6,2759.9,0.45585711]
[1645973474641,2.0,2760.0,2759.9,0.45585711]
[1645973474837,0.25,2760.6,2759.9,0.45585711]
[1645973475286,0.25,2760.6,2760.1,0.36587245]
[1645973475782,0.25,2760.6,2760.1,0.00377245]
[1645973476186,0.25,2760.6,2760.0,1.53191101]
[1645973476390,0.25,2760.6,2760.1,0.3621]
[1645973476591,0.25,2760.6,2760.3,0.3621]
[1645973476789,0.25,2760.6,2760.4,1.30964439]
[1645973476998,0.25,2760.6,2759.9,1.45143801]
[1645973477188,0.25,2760.6,2760.0,1.53185188]
[1645973477388,0.25,2760.6,2759.9,0.45143801]
[1645973477587,0.25,2760.6,2760.0,1.53193997]
[1645973477991,0.25,2760.6,2759.9,0.45143801]
[1645973478392,0.25,2760.6,2760.1,0.3621]
[1645973478732,0.25,2760.6,2760.2,0.00441539]
[1645973479734,0.25,2760.6,2760.3,0.00441523]
[1645973480840,0.429,2760.8,2760.3,0.00441523]
[1645973481038,0.429,2760.8,2760.3,0.00441515]
[1645973481237,17.82,2761.2,2760.3,0.00441515]
[1645973481436,0.729,2761.1,2760.3,0.00441515]
[1645973481641,0.429,2761.1,2760.3,0.00441515]
[1645973482043,11.02,2761.0,2760.3,0.00441515]
[1645973482243,13.02,2760.8,2760.6,0.00441475]
[1645973482478,0.429,2760.7,2760.6,0.00441475]
[1645973483479,0.429,2760.7,2760.5,0.00353957]
[1645973484082,11.02,2760.6,2760.5,0.00353957]
[1645973484282,11.32,2760.6,2760.5,0.00353957]
[1645973484482,0.729,2760.6,2760.5,0.00353957]
[1645973484686,0.729,2760.6,2760.5,0.00353963]
[1645973485283,2.729,2760.6,2760.5,0.00353963]
[1645973485685,2.429,2760.6,2760.5,0.00353963]
[1645973485890,2.0,2760.6,2760.0,10.86]
[1645973486088,2.0,2760.6,2760.1,1.71595496]
[1645973486344,2.0,2760.6,2760.1,1.35385496]
[1645973486946,0.25,2761.4,2760.2,3.8621]
[1645973487252,2.0,2761.2,2760.2,1.00370279]
[1645973487446,2.0,2761.2,2760.2,0.00370279]
[1645973487447,0.429,2761.1,2760.2,0.00370279]
[1645973487846,11.449,2761.1,2760.2,0.00370279]
[1645973488050,11.449,2761.1,2759.9,0.45143801]
[1645973488051,1.0,2761.0,2759.9,0.45143801]
[1645973488249,2.429,2760.9,2759.9,0.45143801]
[1645973488452,2.429,2760.9,2760.0,1.09142689]
[1645973488850,2.429,2760.9,2760.0,4.95352689]
[1645973489052,0.25,2761.4,2760.0,4.9661784]
[1645973489253,2.25,2761.4,2760.0,4.9661784]
[1645973489553,2.25,2761.4,2760.2,0.3621]
[1645973489755,2.25,2761.4,2760.3,3.5]
[1645973489979,2.679,2761.4,2760.1,1.0]
[1645973490184,2.679,2761.4,2760.1,0.3621]
[1645973490784,2.679,2761.4,2760.6,0.00426353]
[1645973490984,2.679,2761.4,2760.7,1.3978593]
[1645973490985,2.429,2761.4,2760.7,1.3978593]
[1645973491583,2.429,2761.4,2760.6,0.00426353]
[1645973491986,13.749,2761.4,2760.9,0.00426307]
[1645973492189,11.02,2761.2,2760.9,0.00426307]
[1645973492394,13.02,2761.0,2760.9,6.307e-05]
[1645973492587,17.249,2761.0,2760.9,6.307e-05]
[1645973492787,14.92908108,2761.0,2760.9,6.307e-05]
[1645973492990,2.60908108,2761.0,2760.9,6.307e-05]
[1645973493189,2.60908108,2761.0,2760.0,3.5]
[1645973493190,2.429,2761.0,2760.0,3.5]
[1645973493390,2.429,2761.0,2759.9,0.45143801]
[1645973493589,2.429,2761.0,2759.9,3.95143801]
[1645973493874,2.429,2761.0,2759.9,0.45143801]
[1645973494074,2.429,2761.0,2760.3,1.01717087]
[1645973494275,0.13819997,2761.5,2760.3,1.01717087]
[1645973494276,2.0,2760.7,2760.3,1.01717087]
[1645973495272,2.0,2760.7,2759.9,0.45143801]
[1645973495573,2.0,2760.7,2760.4,0.00426182]
[1645973496578,11.02,2760.5,2760.4,0.00426182]
[1645973496772,0.429,2760.5,2760.4,0.00426182]
[1645973496975,0.429,2760.5,2760.4,0.00426175]
[1645973497174,2.0,2760.6,2760.4,0.00426175]
[1645973498184,2.0,2760.6,2760.4,0.00426182]
[1645973500491,2.0,2760.6,2760.4,0.00766613]
[1645973500692,2.0,2760.6,2760.4,0.00340431]
[1645973501352,2.429,2760.6,2760.4,0.00340431]
[1645973501750,2.429,2760.6,2760.4,0.00680862]
[1645973501751,0.79470245,2760.6,2760.4,0.00680862]
[1645973501951,0.79470245,2760.6,2760.4,0.00340431]
[1645973502150,0.36570245,2760.6,2760.4,0.00340431]
[1645973502351,0.25,2761.4,2760.5,1.11589611]
[1645973504257,0.56719997,2761.5,2760.8,0.00356231]
[1645973505080,0.679,2762.1,2760.8,0.00356231]
[1645973505283,2.0,2762.0,2760.9,0.6621]
[1645973505477,2.0,2762.0,2761.1,0.3621]
[1645973505676,2.0,2762.0,2760.8,3.50356231]
[1645973505877,2.0,2762.0,2760.9,0.3621]
[1645973506083,2.0,2762.0,2760.9,1.89385284]
[1645973506280,2.0,2762.0,2760.9,0.3621]
[1645973506480,2.0,2762.0,2761.0,3.5]
[1645973506880,2.0,2762.0,2761.0,1.0]
[1645973507079,2.0,2762.0,2761.1,0.3621]
[1645973507283,2.0,2762.0,2760.8,4.86566231]
[1645973507480,2.0,2762.0,2760.9,1.53177779]
[1645973507680,2.0,2762.0,2760.8,1.00709978]
[1645973507885,2.0,2762.0,2760.8,1.00353747]
[1645973508081,2.0,2762.0,2760.8,0.00353747]
[1645973508283,2.0,2762.0,2760.8,5.39746712]
[1645973508485,0.14640336,2762.4,2760.8,5.39746712]
[1645973508486,0.00480336,2762.4,2761.5,5.3621]
[1645973508734,0.00480336,2762.4,2762.0,0.3621]
[1645973508938,3.36e-06,2762.4,2762.3,5.3621]
[1645973509141,3.36e-06,2762.4,2762.3,8.8621]
[1645973509336,6.58e-06,2762.4,2762.3,8.67836284]
[1645973509538,6.58e-06,2762.4,2762.3,19.41856284]
[1645973509936,6.58e-06,2762.4,2762.3,9.38742]
[1645973510236,6.58e-06,2762.4,2762.3,8.9023]
[1645973510440,0.25,2763.2,2762.3,8.9023]
[1645973510638,0.429,2763.9,2762.5,0.3621]
[1645973510836,0.429,2763.9,2763.1,1.24386309]
[1645973511036,0.429,2763.9,2762.6,0.3621]
[1645973511439,0.429,2763.9,2762.4,4.5]
[1645973511641,11.20008108,2763.8,2762.3,7.2402]
[1645973511838,2.0,2763.4,2762.3,8.2402]
[1645973512038,3.429,2763.4,2762.7,1.32471347]
[1645973512872,3.429,2763.4,2762.3,8.6023]
[1645973513271,3.429,2763.4,2762.5,0.3621]
[1645973513474,3.0,2763.4,2762.7,0.3621]
[1645973513877,0.00515352,2763.0,2762.7,0.3621]
[1645973514476,0.00515352,2763.0,2762.5,0.3621]
[1645973514677,0.00515352,2763.0,2762.7,1.5643339]
[1645973514876,0.00515352,2763.0,2762.9,0.3621]
[1645973515077,0.00515303,2763.0,2762.9,0.3621]
[1645973515881,0.00515303,2763.0,2762.7,1.2022339]
[1645973516083,0.00515303,2763.0,2762.5,1.0]
[1645973516323,1.0,2763.4,2762.4,0.6]
[1645973516324,0.00515299,2763.1,2762.4,0.6]
[1645973516525,0.00515299,2763.1,2762.4,5.3]
[1645973516737,0.00515299,2763.1,2761.9,0.00356945]
[1645973516738,7.5,2763.0,2761.9,0.00356945]
[1645973516928,3.5,2762.9,2761.9,0.00356945]
[1645973517124,7.929,2763.0,2761.9,0.00356945]
[1645973517125,2.0,2762.1,2761.9,0.00356945]
[1645973517325,14.949,2762.0,2761.9,6.945e-05]
[1645973517730,14.949,2762.0,2761.9,3.89e-05]
[1645973517731,19.33529108,2762.0,2761.9,3.89e-05]
[1645973517929,12.28833,2761.6,2759.8,2.379]
[1645973518129,16.07241822,2761.5,2760.0,1.53197274]
[1645973518333,17.13811822,2761.5,2760.0,1.53197274]
[1645973518530,18.13811822,2761.5,2760.0,1.53197274]
[1645973518733,5.9947,2761.5,2760.0,1.53197274]
[1645973518935,1.0,2761.4,2760.0,1.89407274]
[1645973519133,2.15888,2761.6,2760.1,1.89407274]
[1645973519134,2.0,2761.3,2760.1,1.89407274]
[1645973519336,2.0,2761.3,2760.2,1.53197274]
[1645973519732,2.0,2761.3,2760.5,1.41116759]
[1645973519988,0.429,2761.6,2760.6,1.53188245]
[1645973520193,0.429,2761.6,2760.6,0.00106805]
[1645973520194,2.429,2761.6,2760.6,0.00106805]
[1645973520997,2.729,2761.6,2760.6,0.00106805]
[1645973521192,2.729,2761.6,2761.0,0.0010679]
[1645973521892,3.63516,2761.6,2761.0,0.0010679]
[1645973522198,2.429,2761.6,2761.0,0.0010679]
[1645973522397,2.429,2761.6,2761.2,0.0035237]
[1645973523734,2.429,2761.6,2761.3,0.00346652]
[1645973524138,3.0911,2761.6,2760.0,0.32943506]
[1645973524338,3.0911,2761.6,2760.1,1.53201114]
[1645973524339,3.5,2761.5,2760.1,1.53201114]
[1645973524543,3.5,2761.5,2759.8,2.379]
[1645973524544,0.429,2761.4,2759.8,2.379]
[1645973524743,2.3,2761.0,2759.8,2.379]
[1645973524940,2.3,2761.0,2759.8,1.05501984]
[1645973524941,0.429,2760.9,2759.8,1.05501984]
[1645973525439,2.429,2760.9,2759.5,0.007]
[1645973526145,2.729,2760.9,2759.5,0.007]
[1645973526341,2.729,2760.9,2759.5,1.31344885]
[1645973526540,2.729,2760.9,2759.5,1.67554885]
[1645973526744,2.729,2760.9,2759.5,1.31344885]
[1645973527142,3.729,2760.9,2759.5,1.31344885]
[1645973527340,2.729,2760.9,2759.5,1.31344885]
[1645973527782,2.729,2760.9,2759.5,1.67554885]
[1645973528583,2.729,2760.9,2760.3,0.00416051]
[1645973529183,2.429,2760.9,2760.3,0.00416051]
[1645973529386,2.429,2760.9,2760.5,1.39938887]
[1645973529387,2.0,2760.9,2760.5,1.39938887]
[1645973529587,0.01005347,2761.2,2760.5,0.00416021]
[1645973529785,2.00505937,2761.2,2760.5,0.00416021]
[1645973530987,2.00505972,2761.2,2760.7,0.00415991]
[1645973531434,0.00505972,2761.2,2760.7,0.00415991]
[1645973532131,0.00505986,2761.2,2760.7,0.00415991]
[1645973533235,0.43882742,2761.2,2760.7,0.00750503]
[1645973533435,0.43376756,2761.2,2760.7,0.00334512]
[1645973534040,0.00476756,2761.2,2760.7,0.00334512]
[1645973534435,0.00476756,2761.2,2760.7,0.00434865]
[1645973534637,0.25,2761.4,2760.7,0.00100353]
[1645973535104,0.679,2761.4,2760.7,0.00100353]
[1645973535303,0.979,2761.4,2760.7,0.00100353]
[1645973535503,0.679,2761.4,2760.7,0.00100353]
[1645973535706,0.979,2761.4,2760.7,0.00100353]
[1645973536103,3.5,2761.3,2760.7,0.00100353]
[1645973536303,0.429,2761.2,2760.7,0.00100353]
[1645973536503,3.5,2761.1,2760.7,0.00100353]
[1645973536706,0.429,2761.0,2760.7,0.00100353]
[1645973537001,0.429,2761.0,2760.7,0.00393223]
[1645973540145,0.729,2761.0,2760.7,0.00393223]
[1645973540343,2.729,2761.0,2760.7,0.00393223]
[1645973540544,2.729,2761.0,2760.7,0.00338043]
[1645973540745,3.729,2761.0,2760.7,0.00338043]
[1645973540945,2.729,2761.0,2760.7,0.00338043]
[1645973541148,3.729,2761.0,2760.7,0.00338043]
[1645973541747,4.479,2761.0,2760.7,0.00338043]
[1645973541952,4.429,2761.0,2760.7,0.00338043]
[1645973542889,3.5,2760.9,2760.7,0.00338043]
[1645973543088,13.449,2760.8,2760.7,0.00338043]
[1645973543290,5.929,2760.8,2760.7,0.00338043]
[1645973543490,3.429,2760.8,2760.7,0.00338043]
[1645973543896,2.0,2760.8,2760.7,0.00338043]
[1645973544391,2.0,2760.8,2760.6,0.00346338]
[1645973545399,2.0,2760.8,2760.6,0.00346344]
[1645973546445,2.0,2760.8,2760.6,0.00692688]
[1645973546639,2.0,2760.8,2760.6,0.00346344]
[1645973547643,2.429,2760.8,2760.6,0.00691401]
[1645973547839,2.429,2760.8,2760.6,0.00345057]
[1645973549040,2.0,2760.8,2760.6,0.00345057]
[1645973549239,0.4641,2760.9,2760.6,0.00345057]
[1645973550082,0.4641,2760.9,2760.6,0.00690108]
[1645973550286,0.4641,2760.9,2760.6,0.00345051]
[1645973551290,0.4641,2760.9,2760.6,5.051e-05]
[1645973551291,0.429,2760.8,2760.6,5.051e-05]
[1645973551495,0.429,2760.8,2760.0,0.01383617]
[1645973551496,4.176e-05,2760.6,2760.0,0.01383617]
[1645973551701,0.429,2760.5,2760.0,0.01383617]
[1645973551892,5.56347,2760.4,2760.0,0.01383617]
[1645973552091,0.429,2760.3,2760.0,0.01383617]
[1645973552290,2.0,2760.1,2760.0,0.01383617]
[1645973552793,2.0,2760.1,2759.9,0.45143801]
[1645973553293,2.429,2760.1,2759.9,0.45143801]
[1645973553764,2.429,2760.1,2759.5,0.007]
[1645973553765,7.5,2760.0,2759.5,0.007]
[1645973553947,7.5,2760.0,2759.4,0.007]
[1645973553948,11.02,2759.8,2759.4,0.007]
[1645973554146,11.02,2759.8,2758.0,1.1757]
[1645973554147,6.0,2759.4,2758.0,1.1757]
[1645973554346,6.0,2759.4,2757.8,5.4802]
[1645973554347,18.02,2759.4,2757.8,5.4802]
[1645973554546,14.949,2759.3,2757.8,5.4802]
[1645973554749,12.749,2759.3,2757.8,5.4802]
[1645973554947,12.749,2759.3,2757.9,1.04477475]
[1645973555153,12.749,2759.3,2759.1,0.00124614]
[1645973555453,12.749,2759.3,2758.6,0.00498532]
[1645973555454,7.5,2759.1,2758.6,0.00498532]
[1645973555656,7.5,2759.1,2758.6,8.532e-05]
[1645973555657,11.02,2758.8,2758.6,8.532e-05]
[1645973555854,11.3821,2758.5,2756.8,5.5125]
[1645973556049,11.3821,2758.5,2756.9,1.53350256]
[1645973556050,0.429,2758.4,2756.9,1.53350256]
[1645973556250,0.25,2757.9,2756.9,1.53350256]
[1645973556449,0.25,2757.9,2756.9,1.57897643]
[1645973556649,0.25,2757.9,2757.0,1.67850256]
[1645973556650,0.679,2757.9,2757.0,1.67850256]
[1645973556852,0.679,2757.9,2757.2,0.1121]
[1645973557050,0.25,2757.9,2757.3,0.1449]
[1645973557250,0.25,2757.9,2757.3,0.04320018]
[1645973557488,0.25,2757.9,2757.4,0.04263176]
[1645973557694,0.25,2757.9,2757.1,0.1449]
[1645973557695,0.25,2757.9,2757.3,0.04320018]
[1645973557889,2.0,2757.7,2757.2,0.0437686]
[1645973558188,2.0,2757.7,2757.3,0.1449]
[1645973558189,0.36428345,2757.7,2757.3,0.1449]
[1645973558392,0.36428345,2757.7,2756.7,0.19151072]
[1645973558594,0.13189544,2757.9,2757.4,0.04263176]
[1645973558795,0.13189544,2757.9,2756.9,0.507]
[1645973559091,0.13189544,2757.9,2757.1,0.3621]
[1645973559293,0.13189544,2757.9,2757.0,0.04490545]
[1645973559491,0.13189544,2757.9,2757.2,0.4058686]
[1645973559692,0.13189544,2757.9,2757.2,0.3621]
[1645973559891,0.13189544,2757.9,2757.4,0.00413214]
[1645973560296,0.13189544,2757.9,2757.5,0.04206333]
[1645973560702,0.13189544,2757.9,2757.7,1.15471524]
[1645973560898,0.13189544,2757.9,2757.5,0.04206333]
[1645973561101,0.13189544,2757.9,2757.4,0.00413214]
[1645973561102,0.13189544,2757.9,2757.8,0.04035806]
[1645973561375,0.13189544,2757.9,2757.6,0.00123955]
[1645973561571,0.13189544,2757.9,2757.7,0.04092649]
[1645973562371,0.13189544,2757.9,2757.7,0.042166]
[1645973562771,0.13189544,2757.9,2757.8,0.04035806]
[1645973562978,0.13189544,2757.9,2757.7,0.00123951]
[1645973562979,0.56089544,2757.9,2757.7,0.00123951]
[1645973563173,0.56089544,2757.9,2757.2,0.00495877]
[1645973563174,6.0,2757.7,2757.2,0.00495877]
[1645973563370,3.929,2757.6,2757.2,0.00495877]
[1645973563673,3.929,2757.6,2757.3,0.00495868]
[1645973563674,0.429,2757.6,2757.3,0.00495868]
[1645973564871,0.429,2757.6,2756.1,0.1449]
[1645973564872,0.7911,2757.6,2756.1,0.1449]
[1645973565074,0.25,2757.2,2756.1,0.1449]
[1645973565276,0.429,2757.1,2756.1,0.1449]
[1645973565478,0.429,2757.1,2756.0,3.7918111]
[1645973565875,0.429,2757.1,2756.0,3.659161]
[1645973565876,0.7911,2757.1,2756.0,3.659161]
[1645973566075,0.429,2757.1,2756.5,1.22076326]
[1645973566274,2.0,2756.9,2756.2,0.145]
[1645973566477,2.0,2756.9,2756.1,0.1451]
[1645973566682,0.25,2756.7,2756.0,3.659161]
[1645973566879,0.429,2756.6,2756.0,3.659161]
[1645973567275,2.0,2756.1,2756.0,3.659161]
[1645973568082,0.25,2756.7,2756.0,5.55513624]
[1645973568278,0.25,2756.7,2756.3,1.39548678]
[1645973568480,0.25,2757.0,2756.3,1.39548678]
[1645973568735,0.25,2756.7,2756.4,3.5]
[1645973568936,0.25,2756.8,2756.3,1.39548678]
[1645973569135,0.25,2756.8,2756.4,0.3621]
[1645973569538,0.25,2756.8,2756.3,1.39548678]
[1645973569739,0.25,2756.8,2756.0,3.659161]
[1645973569740,0.25,2756.8,2756.4,0.00412735]
[1645973569939,2.0,2756.5,2756.4,0.00412735]
[1645973570137,2.429,2756.5,2756.4,0.00412735]
[1645973570942,2.429,2756.5,2756.3,0.0041275]
[1645973571740,2.429,2756.5,2756.0,3.1632885]
[1645973571942,2.429,2756.5,2756.3,0.00412757]
[1645973573183,2.429,2756.5,2756.0,3.1632885]
[1645973573487,2.429,2756.5,2756.2,1.12218659]
[1645973573883,2.0,2756.5,2756.2,1.12218659]
[1645973574587,2.0,2756.5,2756.0,3.1632885]
[1645973576629,2.0,2756.1,2756.0,1.6023885]
[1645973576833,5.929,2756.1,2756.0,8.85e-05]
[1645973577027,13.449,2756.1,2755.8,0.0184223]
[1645973577225,14.60714,2756.1,2755.8,0.0184223]
[1645973577434,11.02,2755.6,2755.4,0.06177858]
[1645973577627,3.68008108,2756.0,2755.4,0.06177858]
[1645973577628,0.429,2755.5,2755.4,0.06177858]
[1645973577829,0.729,2755.5,2755.4,0.04177858]
[1645973578029,0.429,2755.5,2755.4,0.04177858]
[1645973578227,0.25,2756.1,2755.5,0.85799999]
[1645973578427,2.429,2755.7,2755.5,0.85799999]
[1645973579430,2.0,2755.7,2755.5,1.22009999]
[1645973579631,0.25,2756.1,2755.5,0.85799999]
[1645973579829,2.25,2756.1,2755.5,0.85799999]
[1645973580494,0.00388805,2755.9,2755.5,0.85799999]
[1645973581690,0.00388805,2755.9,2755.6,1.14702427]
[1645973581890,0.00504973,2755.8,2755.6,1.14702427]
[1645973584134,20.0,2757.1,2755.8,7.3629]
[1645973584332,0.25,2756.7,2755.8,12.3629]
[1645973584534,20.0,2757.1,2756.2,0.01288046]
[1645973584739,20.0,2757.1,2756.4,1.05668915]
[1645973584938,20.0,2757.1,2756.5,0.3629]
[1645973585134,20.0,2757.1,2757.0,1.15393494]
[1645973585937,20.0,2757.1,2756.6,7.2548]
[1645973586837,20.0,2757.1,2756.7,0.3629]
[1645973587039,20.0,2757.1,2756.8,1.25659962]
[1645973587680,20.0,2757.1,2756.8,1.61949962]
[1645973587882,0.00507646,2757.0,2756.8,1.61949962]
[1645973588282,0.25,2757.7,2756.9,3.8629]
[1645973588487,1.8144522,2758.7,2756.9,3.8629]
[1645973588488,0.1392,2758.9,2757.1,0.3629]
[1645973588687,2.0,2758.6,2757.1,0.3629]
[1645973588887,2.0,2758.6,2757.3,0.3629]
[1645973589091,1.25,2758.9,2757.3,0.3629]
[1645973589298,1.25,2758.9,2757.3,1.14802]
[1645973589494,1.25,2758.9,2758.8,1.13869504]
[1645973589495,0.25,2758.9,2758.8,1.13869504]
[1645973589689,7.36,2760.0,2758.8,1.50159504]
[1645973589892,0.25,2759.8,2758.8,1.50159504]
[1645973590291,0.25,2759.8,2758.8,12.52159504]
[1645973590489,0.25,2759.8,2758.8,12.73713057]
[1645973590688,0.25,2759.8,2759.7,1.45583356]
[1645973590888,2.18008108,2760.4,2759.7,1.45583356]
[1645973591089,0.43008108,2760.7,2759.7,1.45583356]
[1645973591347,0.429,2760.9,2759.7,1.45583356]
[1645973591348,2.429,2760.9,2759.7,1.45583356]
[1645973591544,2.7919,2760.9,2759.7,1.09293356]
[1645973591744,0.18008108,2760.8,2759.7,1.09293356]
[1645973591963,0.60908108,2760.8,2759.7,1.09293356]
[1645973592342,0.60908108,2760.8,2759.8,0.3629]
[1645973592542,0.429,2760.8,2759.7,1.09293356]
[1645973592742,0.00509746,2760.4,2759.7,1.09293356]
[1645973593145,0.00509746,2760.4,2759.0,8.1984]